bitfinex-derivatives/quotes_SOLF0:USTF0_20250428
["timestamp","ask_amount","ask_price","bid_price","bid_amount"]
[1745799990489,7.3398153,147.35,147.31,6.7859]
[1745799990792,14.1243153,147.35,147.31,6.7859]
[1745799991294,14.1243153,147.35,147.3,6.7865]
[1745799991593,7.3398153,147.31,147.25,4.2265]
[1745799993189,7.3398153,147.33,147.25,4.2265]
[1745799993388,7.3398153,147.35,147.27,7.3398153]
[1745799993594,14.1235153,147.37,147.28,41.46]
[1745799993790,7.3398153,147.37,147.29,7.3398153]
[1745799993997,7.3398153,147.39,147.36,6.7834]
[1745799994188,7.3398153,147.39,147.31,7.3398153]
[1745799994387,7.3398153,147.39,147.32,4.0895]
[1745799994590,530.44,147.42,147.37,6.7832]
[1745799994790,7.3398153,147.4,147.37,6.7832]
[1745799995398,7.3398153,147.43,147.33,47.5398153]
[1745799995593,7.3398153,147.43,147.35,7.3398153]
[1745799995996,7.3398153,147.43,147.38,6.7826]
[1745799996196,7.3398153,147.43,147.33,47.5398153]
[1745799996390,7.3398153,147.41,147.33,47.5398153]
[1745799996597,7.3398153,147.39,147.33,40.2]
[1745799996990,7.3398153,147.39,147.35,6.784]
[1745799997898,7.3398153,147.39,147.33,40.2]
[1745799998500,14.1225153,147.39,147.33,40.2]
[1745799998699,7.3398153,147.39,147.33,40.2]
[1745800000300,7.3398153,147.39,147.36,6.7838]
[1745800000501,7.3398153,147.39,147.33,40.2]
[1745800000704,7.3398153,147.43,147.34,7.3398153]
[1745800000901,7.3398153,147.43,147.39,6.7822]
[1745800001200,7.3398153,147.43,147.34,7.3398153]
[1745800001704,7.3398153,147.43,147.4,6.7819]
[1745800002104,14.1196153,147.45,147.36,7.3398153]
[1745800002304,7.3398153,147.45,147.37,2.1795]
[1745800003006,54.3192153,147.46,147.37,2.1795]
[1745800003204,47.5398153,147.46,147.37,2.1795]
[1745800003505,47.5398153,147.46,147.42,6.7807]
[1745800003700,47.5398153,147.46,147.37,9.5193153]
[1745800003906,7.3398153,147.5,147.41,7.3398153]
[1745800004103,7.3398153,147.5,147.42,4.3759]
[1745800004308,47.5198153,147.52,147.43,9.3783153]
[1745800004606,47.5198153,147.52,147.43,49.5583153]
[1745800005004,54.2965153,147.52,147.43,49.5583153]
[1745800005504,47.5198153,147.52,147.43,49.5583153]
[1745800005707,54.2967153,147.52,147.47,6.7787]
[1745800006206,47.5198153,147.52,147.47,6.7787]
[1745800006407,7.3398153,147.52,147.47,6.7787]
[1745800007109,6.7773,147.51,147.46,6.7792]
[1745800007407,7.3398153,147.5,147.43,42.2185]
[1745800007608,6.778,147.49,147.45,6.7797]
[1745800008106,6.7784,147.48,147.44,6.7801]
[1745800008407,6.7784,147.48,147.43,42.2185]
[1745800008607,6.7784,147.48,147.43,48.9988]
[1745800008803,6.7789,147.47,147.43,42.2185]
[1745800009300,7.3398153,147.5,147.43,42.2185]
[1745800009508,6.7782,147.49,147.43,42.2185]
[1745800009712,7.3398153,147.48,147.43,42.2185]
[1745800010008,7.3398153,147.48,147.44,6.78]
[1745800010406,14.1185153,147.48,147.44,6.78]
[1745800010608,7.3398153,147.48,147.43,48.999]
[1745800010911,7.3398153,147.48,147.43,42.2185]
[1745800011311,7.3398153,147.48,147.45,6.7796]
[1745800012314,14.1182153,147.48,147.44,6.7801]
[1745800012909,7.3398153,147.46,147.42,11.1566]
[1745800013211,7.3398153,147.46,147.42,4.3759]
[1745800013514,7.3398153,147.46,147.43,6.7806]
[1745800014114,14.1191153,147.46,147.43,6.7806]
[1745800014411,7.3398153,147.46,147.43,6.7806]
[1745800014815,7.3398153,147.46,147.42,11.1569]
[1745800015110,14.1194153,147.46,147.42,11.1569]
[1745800015316,7.3398153,147.44,147.4,6.7817]
[1745800015520,7.3398153,147.49,147.36,4.2338]
[1745800015521,7.3398153,147.42,147.36,4.2338]
[1745800015817,14.1209153,147.42,147.38,6.7826]
[1745800016016,7.3398153,147.42,147.36,4.2338]
[1745800018124,7.3398153,147.42,147.39,6.7822]
[1745800018317,7.3398153,147.42,147.36,4.2338]
[1745800018625,7.3398153,147.38,147.35,45.644]
[1745800018827,7.3398153,147.38,147.34,2.0454]
[1745800019321,7.3398153,147.38,147.36,6.7838]
[1745800019531,7.3398153,147.38,147.32,4.493]
[1745800019828,7.3398153,147.38,147.36,6.7835]
[1745800020028,7.3398153,147.4,147.32,4.493]
[1745800020227,7.3398153,147.4,147.33,2.1136]
[1745800020526,37.6,147.41,147.33,39.7136]
[1745800021327,7.3398153,147.44,147.34,7.3398153]
[1745800021728,14.1204153,147.44,147.34,7.3398153]
[1745800022635,14.1204153,147.44,147.39,6.7821]
[1745800022825,6.7806,147.44,147.34,7.3398153]
[1745800023130,7.3398153,147.43,147.39,6.7823]
[1745800023430,14.1217153,147.41,147.33,39.7136]
[1745800023732,7.3398153,147.39,147.36,6.7836]
[1745800024323,7.3398153,147.39,147.33,37.6]
[1745800024530,7.3398153,147.37,147.32,4.493]
[1745800024927,7.3398153,147.37,147.34,6.7845]
[1745800027135,7.3398153,147.39,147.36,6.7839]
[1745800027430,7.3398153,147.37,147.29,39.8517]
[1745800027629,14.1233153,147.37,147.3,4.1786]
[1745800028527,14.1233153,147.37,147.34,6.7847]
[1745800029535,7.3398153,147.37,147.34,6.7847]
[1745800030332,14.1232153,147.37,147.33,6.7852]
[1745800030833,14.1232153,147.37,147.3,4.1786]
[1745800030834,7.3398153,147.37,147.34,6.7848]
[1745800031736,7.3398153,147.37,147.3,4.1786]
[1745800032237,6.7842,147.36,147.32,6.7857]
[1745800032436,7.3398153,147.35,147.32,6.7857]
[1745800032635,7.3398153,147.35,147.3,4.1786]
[1745800032836,7.3398153,147.33,147.3,6.7865]
[1745800033033,7.3398153,147.37,147.29,44.9398153]
[1745800033234,38.8955,147.41,147.31,7.3398153]
[1745800033235,7.3398153,147.39,147.31,7.3398153]
[1745800033428,14.1226153,147.39,147.35,6.7841]
[1745800034639,7.3398153,147.4,147.32,2.1407]
[1745800034838,7.3398153,147.4,147.33,11.6538153]
[1745800035840,14.1221153,147.4,147.33,11.6538153]
[1745800036139,7.3398153,147.4,147.33,11.6538153]
[1745800036641,7.3398153,147.4,147.37,6.7831]
[1745800036840,7.3398153,147.4,147.33,11.6538153]
[1745800037043,7.3398153,147.42,147.34,36.38]
[1745800037846,7.3398153,147.42,147.35,7.3398153]
[1745800038238,14.1211153,147.42,147.35,7.3398153]
[1745800038443,14.1211153,147.42,147.38,6.7827]
[1745800038942,14.1211153,147.42,147.35,7.3398153]
[1745800039139,7.3398153,147.42,147.35,7.3398153]
[1745800039744,14.1212153,147.42,147.38,6.7827]
[1745800040042,7.3398153,147.42,147.35,7.3398153]
[1745800040243,7.3398153,147.42,147.39,6.7821]
[1745800041745,14.1211153,147.42,147.39,6.7821]
[1745800042840,7.3398153,147.44,147.4,6.782]
[1745800043345,14.1204153,147.44,147.4,6.782]
[1745800044149,6.7807,147.43,147.4,6.782]
[1745800046044,6.7811,147.42,147.39,6.7825]
[1745800046247,7.3398153,147.4,147.34,36.38]
[1745800046647,14.1221153,147.4,147.36,6.7836]
[1745800046848,7.3398153,147.4,147.36,6.7836]
[1745800047049,7.3398153,147.38,147.33,4.314]
[1745800047249,14.1230153,147.38,147.34,6.7845]
[1745800047448,7.3398153,147.38,147.33,4.314]
[1745800047749,7.3398153,147.38,147.36,6.7839]
[1745800048352,42.4198153,147.4,147.37,6.7834]
[1745800049550,49.2019153,147.4,147.37,6.7834]
[1745800049848,49.2019153,147.4,147.36,6.7837]
[1745800050250,49.2019153,147.4,147.37,6.7834]
[1745800050852,7.3398153,147.38,147.33,4.314]
[1745800051952,7.3398153,147.38,147.33,2.1052]
[1745800053252,6.7836,147.37,147.33,2.1052]
[1745800053647,7.3398153,147.36,147.32,2.1407]
[1745800053851,6.7848,147.34,147.31,6.786]
[1745800054456,6.7845,147.35,147.32,6.7857]
[1745800054951,7.3398153,147.36,147.3,2.1882]
[1745800055249,7.3398153,147.36,147.33,6.7851]
[1745800055452,7.3398153,147.36,147.3,2.1882]
[1745800056055,14.1237153,147.36,147.3,2.1882]
[1745800056859,7.3398153,147.36,147.3,2.1882]
[1745800057153,7.3398153,147.36,147.31,4.2453]
[1745800057652,14.1229153,147.38,147.31,4.2453]
[1745800057857,7.3398153,147.38,147.31,4.2453]
[1745800058355,49.2019153,147.4,147.31,11.5851153]
[1745800058557,49.2019153,147.4,147.32,35.1]
[1745800058558,42.4198153,147.4,147.32,35.1]
[1745800059052,42.4198153,147.4,147.37,6.7831]
[1745800059259,7.3398153,147.42,147.33,7.3398153]
[1745800060256,14.1210153,147.42,147.38,6.7827]
[1745800060757,7.3398153,147.42,147.39,6.7825]
[1745800061061,7.3398153,147.42,147.33,7.3398153]
[1745800061355,14.1212153,147.42,147.38,6.7828]
[1745800061551,7.3398153,147.42,147.38,6.7828]
[1745800062357,14.1210153,147.42,147.38,6.7828]
[1745800062556,7.3398153,147.42,147.39,6.7823]
[1745800063060,14.1210153,147.42,147.39,6.7823]
[1745800063854,7.3398153,147.42,147.39,6.7823]
[1745800064060,42.4398153,147.44,147.37,33.88]
[1745800064258,35.1,147.44,147.38,4.2468]
[1745800064458,7.3398153,147.46,147.38,4.2468]
[1745800064658,41.2198153,147.48,147.39,7.3398153]
[1745800065261,41.2198153,147.48,147.44,6.7799]
[1745800066268,47.9985153,147.48,147.44,6.7799]
[1745800066863,47.9985153,147.48,147.43,6.7805]
[1745800067064,6.779,147.47,147.43,6.7805]
[1745800067263,41.2198153,147.48,147.38,4.2468]
[1745800067264,7.3398153,147.46,147.38,4.2468]
[1745800067557,6.7798,147.45,147.41,6.7812]
[1745800068363,14.1192153,147.46,147.42,6.7811]
[1745800069759,6.7798,147.45,147.42,6.7811]
[1745800070063,7.3398153,147.44,147.38,4.2468]
[1745800071263,7.3398153,147.44,147.41,6.7813]
[1745800071764,7.3398153,147.44,147.38,4.2468]
[1745800072462,7.3398153,147.42,147.39,6.7825]
[1745800073061,7.3398153,147.44,147.38,4.2468]
[1745800074367,14.1204153,147.44,147.4,6.7818]
[1745800074863,6.781,147.43,147.38,11.0294]
[1745800075358,7.3398153,147.42,147.38,6.7826]
[1745800075563,14.1212153,147.42,147.38,6.7826]
[1745800075761,7.3398153,147.42,147.37,6.7833]
[1745800075953,7.3398153,147.42,147.36,2.2218]
[1745800076961,33.88,147.43,147.36,2.2218]
[1745800077562,33.88,147.43,147.37,4.2287]
[1745800078060,33.88,147.43,147.42,6.7811]
[1745800078264,33.88,147.43,147.37,4.2287]
[1745800078564,33.88,147.43,147.42,6.7811]
[1745800078863,7.3398153,147.44,147.42,6.7811]
[1745800079055,7.3398153,147.44,147.37,4.2287]
[1745800080463,7.3398153,147.44,147.41,6.7813]
[1745800081164,14.1201153,147.44,147.41,6.7813]
[1745800082067,7.3398153,147.44,147.41,6.7813]
[1745800082765,14.1200153,147.44,147.4,6.7819]
[1745800083467,14.1200153,147.44,147.41,6.7815]
[1745800084168,7.3398153,147.44,147.41,6.7815]
[1745800085067,7.3398153,147.45,147.42,6.7809]
[1745800086960,47.9987153,147.47,147.38,32.68]
[1745800087371,47.9987153,147.47,147.43,6.7804]
[1745800087571,4.68743784,147.45,147.43,6.7804]
[1745800088569,33.88,147.47,147.42,4.68743784]
[1745800088868,4.68743784,147.47,147.43,4.68743784]
[1745800089272,4.68743784,147.47,147.45,6.7794]
[1745800089473,7.32183295,147.49,147.45,6.7794]
[1745800090176,14.09993295,147.49,147.45,6.7794]
[1745800090475,7.32183295,147.49,147.45,6.7794]
[1745800091276,6.7784,147.48,147.45,6.7794]
[1745800092876,6.7784,147.48,147.44,6.7801]
[1745800093076,7.32183295,147.49,147.44,6.7801]
[1745800093677,6.7785,147.48,147.44,6.7801]
[1745800094076,6.7785,147.48,147.45,6.7796]
[1745800094579,14.09993295,147.49,147.45,6.7796]
[1745800095178,7.32183295,147.47,147.38,32.68]
[1745800095377,7.32183295,147.45,147.38,32.68]
[1745800095676,7.32183295,147.45,147.41,6.7812]
[1745800095873,7.32183295,147.45,147.38,32.68]
[1745800096075,7.32183295,147.43,147.37,4.2287]
[1745800096279,14.10283295,147.43,147.39,6.7823]
[1745800096579,7.32183295,147.43,147.37,4.2287]
[1745800096975,7.32183295,147.43,147.39,6.7822]
[1745800097185,7.32183295,147.43,147.37,4.2287]
[1745800098080,14.10263295,147.43,147.37,4.2287]
[1745800098277,7.32183295,147.43,147.37,4.2287]
[1745800098780,7.32183295,147.43,147.4,6.7818]
[1745800099280,7.32183295,147.45,147.37,4.2287]
[1745800099680,14.10193295,147.45,147.41,6.7813]
[1745800101383,6.7802,147.44,147.41,6.7813]
[1745800102483,6.7798,147.45,147.41,6.7813]
[1745800102782,14.10163295,147.45,147.41,6.7813]
[1745800102983,7.32183295,147.45,147.41,6.7813]
[1745800104284,6.7802,147.44,147.41,6.7813]
[1745800106981,14.10263295,147.43,147.4,6.7819]
[1745800108884,7.32183295,147.43,147.4,6.7819]
[1745800109087,7.32183295,147.43,147.41,6.7816]
[1745800109383,7.32183295,147.43,147.37,4.2287]
[1745800109685,4.68923215,147.42,147.4,6.7817]
[1745800110884,4.68923215,147.41,147.4,6.7817]
[1745800112385,4.68923215,147.42,147.41,6.7813]
[1745800114891,4.68923215,147.42,147.4,6.7819]
[1745800115691,4.68923215,147.42,147.41,6.7816]
[1745800115893,4.68923215,147.45,147.4,4.68923215]
[1745800116192,4.68923215,147.45,147.43,6.7804]
[1745800116492,4.68923215,147.44,147.4,4.68923215]
[1745800117494,4.68923215,147.44,147.43,6.7807]
[1745800117793,4.68923215,147.45,147.43,6.7807]
[1745800117988,4.68923215,147.44,147.43,6.7807]
[1745800118190,488.3,147.5,147.43,4.68923215]
[1745800118391,4.68923215,147.49,147.44,4.68923215]
[1745800118594,4.68923215,147.49,147.47,6.7785]
[1745800119095,36.48923215,147.51,147.46,4.68923215]
[1745800119287,4.68923215,147.5,147.48,6.7781]
[1745800119895,4.68923215,147.5,147.49,6.7779]
[1745800120598,4.68923215,147.5,147.48,6.7782]
[1745800120798,4.68923215,147.49,147.45,6.667]
[1745800121097,4.68923215,147.48,147.45,6.667]
[1745800121299,4.68923215,147.48,147.46,6.7789]
[1745800121500,4.68923215,147.49,147.45,6.667]
[1745800121896,4.68923215,147.49,147.47,6.7787]
[1745800123095,4.68923215,147.49,147.48,6.7784]
[1745800123296,4.68923215,147.5,147.46,4.68923215]
[1745800123601,36.48923215,147.51,147.46,4.68923215]
[1745800124200,36.48923215,147.51,147.49,6.7776]
[1745800124495,4.68923215,147.5,147.49,6.7776]
[1745800124801,4.68923215,147.5,147.45,11.35623215]
[1745800125000,4.68923215,147.49,147.45,11.35623215]
[1745800125298,4.68923215,147.5,147.48,6.7784]
[1745800127895,4.68923215,147.49,147.45,11.35623215]
[1745800128402,4.68923215,147.49,147.47,6.7785]
[1745800131399,4.68923215,147.49,147.45,11.35623215]
[1745800131400,4.68923215,147.49,147.46,6.7791]
[1745800131901,4.68923215,147.49,147.47,6.7785]
[1745800133203,4.68923215,147.49,147.48,6.7784]
[1745800133406,4.68923215,147.5,147.48,6.7784]
[1745800133600,4.68923215,147.5,147.45,11.35623215]
[1745800135203,4.68923215,147.5,147.45,6.667]
[1745800135402,31.8,147.51,147.46,4.68923215]
[1745800135703,4.68923215,147.5,147.46,4.68923215]
[1745800136107,31.8,147.51,147.47,4.68923215]
[1745800136302,4.68923215,147.52,147.47,4.68923215]
[1745800136503,4.68923215,147.51,147.47,4.68923215]
[1745800137605,4.68923215,147.51,147.49,6.7775]
[1745800138208,4.68923215,147.51,147.5,6.7774]
[1745800140009,4.68923215,147.52,147.51,6.777]
[1745800141508,4.68923215,147.52,147.46,4.68923215]
[1745800141704,4.68923215,147.5,147.45,11.35623215]
[1745800143610,4.68923215,147.5,147.48,6.778]
[1745800145911,4.68923215,147.49,147.45,6.667]
[1745800146215,4.68923215,147.47,147.45,6.667]
[1745800146710,4.68923215,147.47,147.46,6.7793]
[1745800149813,4.68923215,147.47,147.45,6.7796]
[1745800150013,4.68923215,147.46,147.45,6.7796]
[1745800150913,4.68923215,147.46,147.44,6.78]
[1745800151115,4.68923215,147.45,147.44,6.78]
[1745800153918,4.68923215,147.46,147.45,6.7795]
[1745800157515,4.68923215,147.47,147.46,6.7793]
[1745800157814,4.68923215,147.5,147.46,4.68923215]
[1745800158008,36.44923215,147.51,147.5,6.7774]
[1745800158210,4.68923215,147.53,147.49,4.68923215]
[1745800158613,4.68923215,147.53,147.51,6.7767]
[1745800159214,4.68923215,147.52,147.51,6.7767]
[1745800160416,38.5352,147.55,147.51,6.7767]
[1745800160713,4.68923215,147.52,147.51,6.7767]
[1745800161820,4.68923215,147.52,147.49,6.7778]
[1745800162115,4.68923215,147.51,147.47,11.05613215]
[1745800163019,4.68923215,147.51,147.48,4.68923215]
[1745800163219,4.68923215,147.52,147.5,6.7772]
[1745800165321,4.68923215,147.51,147.5,6.7772]
[1745800165817,31.76,147.55,147.47,11.05613215]
[1745800166011,4.68923215,147.52,147.48,4.68923215]
[1745800166319,4.68923215,147.51,147.47,11.05613215]
[1745800167223,6.7756,147.54,147.5,6.7771]
[1745800167423,4.68923215,147.52,147.48,4.68923215]
[1745800168222,4.68923215,147.52,147.5,6.7772]
[1745800169221,4.68923215,147.51,147.5,6.7772]
[1745800169419,4.68923215,147.51,147.47,6.3669]
[1745800169620,31.76,147.55,147.47,11.05613215]
[1745800169922,4.68923215,147.51,147.47,11.05613215]
[1745800170219,4.68923215,147.5,147.49,6.7776]
[1745800170718,4.68923215,147.5,147.47,4.2052]
[1745800171022,4.68923215,147.48,147.47,4.2052]
[1745800171325,4.68923215,147.48,147.42,33.8725]
[1745800171523,4.68923215,147.44,147.42,33.8725]
[1745800171819,4.68923215,147.44,147.43,6.7807]
[1745800174024,4.68923215,147.45,147.44,6.7802]
[1745800176224,4.68923215,147.46,147.45,6.7797]
[1745800177225,31.7,147.5,147.44,4.68923215]
[1745800177527,4.68923215,147.49,147.45,9.01853215]
[1745800177721,4.68923215,147.5,147.46,4.68923215]
[1745800178017,4.68923215,147.5,147.45,9.01853215]
[1745800178221,4.68923215,147.5,147.46,4.68923215]
[1745800178527,4.68923215,147.51,147.46,4.68923215]
[1745800178821,4.68923215,147.51,147.5,6.7774]
[1745800183637,4.68923215,147.52,147.51,6.777]
[1745800183839,4.68923215,147.52,147.47,4.68923215]
[1745800184337,4.68923215,147.52,147.51,6.777]
[1745800190136,31.7,147.54,147.53,6.7761]
[1745800190342,4.68923215,147.54,147.49,4.68923215]
[1745800190640,38.4741,147.58,147.49,4.68923215]
[1745800190836,4.68923215,147.55,147.5,2.2503]
[1745800191042,4.68923215,147.55,147.51,4.5177]
[1745800192342,4.68923215,147.55,147.54,6.7756]
[1745800199642,4.68923215,147.56,147.51,9.20693215]
[1745800200344,4.68923215,147.56,147.55,6.7751]
[1745800201148,4.68923215,147.56,147.51,4.5177]
[1745800201347,4.68923215,147.52,147.51,4.5177]
[1745800201641,4.68923215,147.54,147.51,4.5177]
[1745800202243,31.7,147.58,147.52,6.7765]
[1745800202449,4.68923215,147.53,147.45,36.32923215]
[1745800202748,4.68923215,147.49,147.45,36.32923215]
[1745800203049,4.68923215,147.5,147.45,36.32923215]
[1745800203250,4.68923215,147.5,147.46,4.68923215]
[1745800203849,4.68923215,147.5,147.49,6.7779]
[1745800204452,4.68923215,147.51,147.5,6.7771]
[1745800206850,31.7,147.58,147.47,4.68923215]
[1745800207048,4.68923215,147.54,147.5,4.68923215]
[1745800207649,4.68923215,147.54,147.53,6.7758]
[1745800207850,4.68923215,147.55,147.5,4.68923215]
[1745800208251,4.68923215,147.55,147.51,4.68923215]
[1745800208453,31.7,147.58,147.53,4.68923215]
[1745800208656,4.68923215,147.56,147.52,4.68923215]
[1745800209354,4.68923215,147.56,147.51,4.68923215]
[1745800209553,4.68923215,147.56,147.55,6.7749]
[1745800209954,4.68923215,147.57,147.52,4.68923215]
[1745800210452,4.68923215,147.57,147.56,6.7745]
[1745800211851,36.38923215,147.58,147.56,6.7745]
[1745800212155,36.38923215,147.58,147.57,6.7742]
[1745800212453,4.68923215,147.58,147.57,6.7742]
[1745800212856,4.68923215,147.59,147.58,6.7736]
[1745800214547,4.68923215,147.59,147.57,6.7742]
[1745800215151,4.68923215,147.58,147.57,6.7742]
[1745800215455,4.68923215,147.58,147.55,4.68923215]
[1745800215654,4.68923215,147.58,147.54,11.28373215]
[1745800216247,4.68923215,147.58,147.57,6.7742]
[1745800219256,4.68923215,147.6,147.56,4.68923215]
[1745800219654,4.68923215,147.61,147.57,4.68923215]
[1745800219954,36.30923215,147.62,147.57,4.68923215]
[1745800220259,4.68923215,147.62,147.58,4.68923215]
[1745800220556,4.68923215,147.62,147.61,6.7724]
[1745800224258,4.68923215,147.62,147.56,4.68923215]
[1745800224455,4.68923215,147.61,147.56,4.68923215]
[1745800224759,4.68923215,147.6,147.59,6.7731]
[1745800225461,4.68923215,147.61,147.6,6.7728]
[1745800225661,4.68923215,147.61,147.56,4.68923215]
[1745800226160,4.68923215,147.61,147.59,6.7732]
[1745800226856,4.68923215,147.6,147.55,4.68923215]
[1745800227159,4.68923215,147.56,147.54,6.5945]
[1745800227362,4.68923215,147.6,147.55,4.68923215]
[1745800227657,4.68923215,147.62,147.57,4.68923215]
[1745800227865,4.68923215,147.63,147.58,4.68923215]
[1745800228067,31.62,147.66,147.6,4.68923215]
[1745800228260,31.62,147.66,147.61,4.68923215]
[1745800228461,36.30923215,147.66,147.61,4.68923215]
[1745800228665,4.68923215,147.64,147.6,4.68923215]
[1745800228866,4.68923215,147.63,147.59,4.68923215]
[1745800229068,1.6763,147.71,147.59,4.68923215]
[1745800229366,1.6763,147.71,147.65,6.7702]
[1745800229367,31.62,147.7,147.65,6.7702]
[1745800229763,31.62,147.7,147.6,40.75793215]
[1745800229764,38.3885,147.7,147.64,6.7709]
[1745800229965,38.3885,147.7,147.6,36.0687]
[1745800230568,4.68923215,147.65,147.61,4.68923215]
[1745800230763,4.68923215,147.65,147.6,40.75793215]
[1745800231773,4.68923215,147.65,147.64,6.771]
[1745800231967,4.68923215,147.67,147.62,4.68923215]
[1745800232263,4.68923215,147.67,147.6,36.0687]
[1745800232264,4.68923215,147.67,147.63,4.68923215]
[1745800232568,31.62,147.7,147.66,6.7701]
[1745800232768,4.68923215,147.67,147.62,4.68923215]
[1745800233065,854.4193,147.75,147.63,4.68923215]
[1745800233266,4.68923215,147.7,147.65,4.68923215]
[1745800233461,4.68923215,147.7,147.67,4.68923215]
[1745800233666,4.68923215,147.71,147.67,4.68923215]
[1745800233866,31.54,147.74,147.64,36.22923215]
[1745800234166,31.54,147.74,147.61,2.1734]
[1745800234167,62.76561792,147.78,147.75,6.7655]
[1745800234366,62.76561792,147.78,147.7,4.68923215]
[1745800234669,62.76561792,147.78,147.74,6.7663]
[1745800234965,62.76561792,147.78,147.69,31.54]
[1745800235166,62.76561792,147.78,147.7,2.0726]
[1745800235367,4.68923215,147.72,147.68,31.54]
[1745800235573,4.68923215,147.71,147.68,31.54]
[1745800235961,4.68923215,147.71,147.7,6.7683]
[1745800236469,4.68923215,147.71,147.69,6.7686]
[1745800236669,4.68923215,147.7,147.66,4.1887]
[1745800236867,4.68923215,147.68,147.66,4.1887]
[1745800237066,4.68923215,147.67,147.62,4.68923215]
[1745800237268,4.68923215,147.66,147.61,36.22923215]
[1745800237574,7.30203644,147.69,147.61,38.84203644]
[1745800238074,38.84203644,147.71,147.63,7.30203644]
[1745800238275,38.84203644,147.71,147.68,6.7692]
[1745800238572,38.84203644,147.71,147.61,38.84203644]
[1745800239375,38.84203644,147.71,147.67,6.7696]
[1745800239572,31.54,147.71,147.61,38.84203644]
[1745800239772,7.30203644,147.69,147.61,38.84203644]
[1745800239974,7.30203644,147.67,147.6,491.8158]
[1745800240373,7.30203644,147.67,147.62,6.7719]
[1745800240582,7.30203644,147.67,147.6,4.2758]
[1745800241079,7.30203644,147.67,147.63,6.771]
[1745800241675,7.30203644,147.67,147.6,4.2758]
[1745800241881,7.30203644,147.63,147.57,31.54]
[1745800242379,32.71894166,147.75,147.62,7.30203644]
[1745800242572,7.30203644,147.74,147.66,7.30203644]
[1745800242773,31.54,147.75,147.68,7.30203644]
[1745800243282,31.54,147.75,147.69,2.1032]
[1745800243580,31.54,147.75,147.7,7.30203644]
[1745800243779,94.30561792,147.79,147.7,7.30203644]
[1745800243979,94.30561792,147.79,147.72,7.30203644]
[1745800244383,94.30561792,147.79,147.75,6.7659]
[1745800244679,94.30561792,147.79,147.72,7.30203644]
[1745800244882,94.30561792,147.79,147.75,6.7657]
[1745800245279,94.30561792,147.79,147.72,7.30203644]
[1745800245883,94.30561792,147.79,147.74,7.30203644]
[1745800246079,31.54,147.79,147.74,7.30203644]
[1745800246283,6.763,147.82,147.74,7.30203644]
[1745800247187,6.763,147.82,147.77,6.765]
[1745800247486,38.82203644,147.83,147.74,7.30203644]
[1745800247686,38.82203644,147.83,147.76,7.30203644]
[1745800247687,31.52,147.83,147.76,7.30203644]
[1745800247888,31.52,147.83,147.79,6.7637]
[1745800248089,38.82203644,147.83,147.77,2.1948]
[1745800248493,7.30203644,147.81,147.76,31.52]
[1745800248689,6.7642,147.79,147.71,496.91993644]
[1745800248884,6.7642,147.79,147.72,33.7148]
[1745800249189,31.52,147.83,147.75,6.766]
[1745800249388,6.7641,147.8,147.75,6.766]
[1745800249792,6.7641,147.8,147.76,6.7655]
[1745800249991,6.7641,147.8,147.72,35.8633]
[1745800250192,6.7642,147.79,147.72,43.16533644]
[1745800250391,7.30203644,147.79,147.73,6.7667]
[1745800250593,6.7647,147.78,147.73,6.7667]
[1745800250794,6.7647,147.78,147.72,43.16533644]
[1745800250992,7.30203644,147.79,147.72,43.16533644]
[1745800251489,7.30203644,147.79,147.75,6.7656]
[1745800251694,7.30203644,147.81,147.72,43.16533644]
[1745800252293,14.06563644,147.81,147.76,6.7651]
[1745800252695,14.06563644,147.81,147.72,43.16533644]
[1745800254598,14.06563644,147.81,147.77,6.765]
[1745800259902,14.06563644,147.81,147.78,6.7646]
[1745800260201,14.06563644,147.81,147.72,43.16533644]
[1745800260595,31.52,147.83,147.72,43.16533644]
[1745800260801,7.30203644,147.87,147.78,7.30203644]
[1745800261101,6.761,147.86,147.78,7.30203644]
[1745800261301,7.30203644,147.87,147.78,7.30203644]
[1745800261502,7.30203644,147.87,147.78,11.67363644]
[1745800261703,0.2503,147.89,147.85,7.30203644]
[1745800261903,0.2503,147.89,147.85,38.74203644]
[1745800262105,0.2503,147.89,147.88,6.76]
[1745800262497,0.2503,147.89,147.86,4.3716]
[1745800262699,0.2503,147.89,147.87,6.7603]
[1745800262895,0.2503,147.89,147.86,4.3716]
[1745800263303,0.2503,147.89,147.87,6.7602]